Cogmind - Beta 15 @@@ ROGUE MODE // 2025.05.06 @ 14:32:54 Player: celerysam Result: Destroyed by KF-FOL(j) with Overtuned Pulse Rifle Performance ------------- Evolutions (0) 0 Regions Visited (3) 600 Robots Destroyed (11) 55 Value Destroyed (290) 290 Prototype IDs (10) 200 Alien Tech Used (0) 0 Bonus (800) 800 TOTAL SCORE: 1945 Bonus ------- Registered with UFD 300 Met Optimus in HQ 500 Cogmind --------- Core Integrity 0/250 Matter 300/300 Energy 275/275 System Corruption 0% Temperature Cool (29) Movement Treading (240) Ox1 Location -8/Scraptown Parts ------- > --- POWER (1) -------- Deuterium Engine > --- PROPULSION (2) --- Improved Treads Overtuned Treads > --- UTILITY (2) ------ Large Storage Unit A0-MCA's Component Scanner > --- WEAPON (2) ------- Flak Gun Battle Cannon > --- INVENTORY (15) --- Nuclear Core Light Angular Momentum Engine Armored Wheel Subdweller Monowheel Overtuned Scrapsphere Cesium-ion Thruster Makeshift Flight Unit Nuclear Pulse Thruster Improved Cooling System Rocket Booster Makeshift Kinetic Plating Overtuned Pulse Rifle CPS Tube (2) Power Sword Makeshift Spear Peak State ------------ > --- POWER ------------ Deuterium Engine > --- PROPULSION ------- Improved Treads Overtuned Treads > --- UTILITY ---------- Large Storage Unit A0-MCA's Component Scanner > --- WEAPON ----------- Flak Gun Battle Cannon > --- INVENTORY -------- Nuclear Core Light Angular Momentum Engine Armored Wheel Subdweller Monowheel Overtuned Scrapsphere Cesium-ion Thruster Makeshift Flight Unit Nuclear Pulse Thruster Improved Cooling System Rocket Booster Makeshift Kinetic Plating Overtuned Pulse Rifle CPS Tube Makeshift Sword Power Sword [Rating: 29] Favorites ----------- Power Ion Engine Engine Ion Engine Propulsion Light Treads Treads Light Treads Leg Aluminum Leg Wheel Subdweller Monowheel Utility Large Storage Unit Device Heat Sink Storage Large Storage Unit Processor A0-MCA's Component Scanner Weapon Battle Cannon Energy Gun Medium Laser Ballistic Gun Flak Gun Ballistic Cannon Battle Cannon Launcher Grenade Launcher Slashing Weapon Makeshift Sword Build | -11 -10 -10 -8 ------- Run | Yrd Mat Sub Scr Slots Evolved . | . . . . Power . | . . . . Propulsion . | . . . . Utility . | . . . . Weapon . | . . . . Parts Attached 31 | 6 6 7 12 Power 5 | 1 1 1 2 Engine 5 | 1 1 1 2 Core . | . . . . Reactor . | . . . . Propulsion 11 | 2 3 . 6 Treads 6 | . 2 . 4 Leg 3 | 2 1 . . Wheel 2 | . . . 2 Hover . | . . . . Flight . | . . . . Utility 5 | 1 2 . 2 Device 2 | . 1 . 1 Storage 2 | 1 1 . . Processor 1 | . . . 1 Hackware . | . . . . Protection . | . . . . Artifact . | . . . . Weapon 10 | 2 . 6 2 Energy Gun 2 | 1 . 1 . Energy Cannon . | . . . . Ballistic Gun 4 | 1 . 2 1 Ballistic Cannon 2 | . . 1 1 Launcher 1 | . . 1 . Special Weapon . | . . . . Impact Weapon . | . . . . Slashing Weapon 1 | . . 1 . Piercing Weapon . | . . . . Special Melee Weapon . | . . . . Unidentified Prototypes . | . . . . Parts Lost 2 | . . 2 . Power . | . . . . Propulsion . | . . . . Utility . | . . . . Weapon 2 | . . 2 . Highest Loss Streak 1 | . . 1 . To Critical Strikes . | . . . . Average Backups 13 | 4 8 12 14 Power 1 | . 1 1 1 Propulsion 4 | 3 4 4 5 Utility 1 | . . 1 1 Weapon 5 | . 2 5 5 Tool/Special . | . . . . Unused Backups 22 | . . . 22 Power 4 | . . . 4 Propulsion 6 | . . . 6 Utility 2 | . . . 2 Weapon 9 | . . . 9 Tool/Special 1 | . . . 1 Average Slot Usage (%) 98 | . 96 99 97 Engine 13 | . 14 14 13 Treads 26 | . 18 28 27 Leg 1 | . 9 . . Device 11 | . 10 14 10 Storage 14 | . 14 14 14 Processor 1 | . . . 3 Energy Gun 5 | . 14 10 . Ballistic Gun 12 | . 14 10 12 Ballistic Cannon 7 | . . . 13 Launcher 1 | . . 3 . Slashing Weapon 1 | . . 2 . Peak Build Rating 29 | 6 7 16 29 Average Rating 14 | 4 6 10 19 On Entrance 5 | . 6 7 10 Naked Turns . | . . . . Heaviest Build 38 | 12 30 31 38 Greatest Support 46 | 20 40 40 46 Greatest Overweight (x) 1 | . . . 1 Average Overweight (x) . | . . . . Largest Inventory Capacity 15 | 8 15 15 15 Average Capacity 14 | 6 12 15 15 Most Carried 15 | 6 9 15 15 Average Carried 13 | 4 8 12 14 Final Capacity 15 | 8 15 15 15 Final Carried 15 | 6 9 15 15 Class Distribution -------------------- 100% | Mutant Dominant Class ---------------- Mutant | -10/Materials Mutant | -10/Subcaves Mutant | -8/Scraptown Resources | -11 -10 -10 -8 ----------- Run | Yrd Mat Sub Scr Matter Collected 821 | 185 66 330 240 Remotely . | . . . . Salvage Created 254 | . 100 154 . Parts 25 | . 12 13 . Haulers Intercepted . | . . . . Recyclers Shooed . | . . . . Parts Field Recycled . | . . . . Retrieved Matter . | . . . . Parts Self-Destructed 11 | . . 11 . Prevented . | . . . . Kills | -11 -10 -10 -8 ------- Run | Yrd Mat Sub Scr Combat Hostiles Destroyed 10 | . 4 6 . Guns 7 | . 4 3 . AOE 3 | . . 3 . Classes Destroyed 4 | . 3 1 . Watcher 1 | . 1 . . Swarmer 4 | . 3 1 . Grunt 1 | . 1 . . Subdweller 5 | . . 5 . Best Kill Streak 3 | . 3 2 . Combat Bots Only 3 | . 3 2 . Max Kills in Single Turn 2 | . 2 1 . Gunslinging 1 | . 1 . . Exploded 1 | . . 1 . Melee . | . . . . Uniques/NPCs Destroyed . | . . . . Combat | -11 -10 -10 -8 -------- Run | Yrd Mat Sub Scr Hostile Shots Fired 95 | . 20 42 33 Missed 28 | . 6 14 8 Hits 67 | . 14 28 25 Projectile 67 | . 14 28 25 Critical Strikes 4 | . . 1 3 Damage Taken 1164 | . 150 513 501 Core 261 | . 54 79 128 Absorbed by Shields . | . . . . Core Remaining (%) 100 | 100 . . . Volleys Fired 50 | . 14 36 . Largest 2 | . 2 2 . Hottest 100 | . 70 100 . Shots Fired 91 | . 26 65 . Gun 79 | . 26 53 . Cannon . | . . . . Launcher 12 | . . 12 . Special . | . . . . Kinetic 35 | . 14 21 . Thermal 44 | . 12 32 . Explosive 12 | . . 12 . Electromagnetic . | . . . . Robot Hit Streak 6 | . 4 6 . Robot Miss Streak 6 | . 6 2 . Penetration Max . | . . . . Secondary Targets 1 | . 1 . . Max Gunslinging Chain 1 | . 1 . . Shots Hit Robots 29 | . 11 18 . Core Hits 20 | . 5 15 . Critical Kills . | . . . . Critical Parts Destroyed 2 | . 2 . . Critical Strikes 2 | . 2 . . Destroy 2 | . 2 . . Melee Attacks 2 | . . 2 . Impact . | . . . . Slashing 2 | . . 2 . Piercing . | . . . . Sneak Attacks . | . . . . Combat Hostiles . | . . . . Follow-up Attacks . | . . . . Damage Inflicted 733 | . 153 580 . Guns 346 | . 153 193 . Cannons . | . . . . Explosions 387 | . . 387 . Melee . | . . . . Ramming . | . . . . Kinetic 246 | . 103 143 . Thermal 100 | . 50 50 . Explosive 387 | . . 387 . Electromagnetic . | . . . . Impact . | . . . . Slashing . | . . . . Piercing . | . . . . Highest Corruption . | . . . . Average Corruption . | . . . . Corruption Purged . | . . . . Corruption Blocked . | . . . . Overload Shots . | . . . . Overflow Damage . | . . . . Projectiles . | . . . . Explosions . | . . . . Melee . | . . . . Knockbacks . | . . . . Impact . | . . . . Kinetic . | . . . . Secondary . | . . . . Self-Inflicted Damage . | . . . . Shots . | . . . . Rammed . | . . . . Targets Rammed . | . . . . Kicked . | . . . . Crushed . | . . . . Highest Temperature 69 | . 69 . 42 Average Temperature 33 | . 41 . 20 Received Heat Transfer 507 | . 48 102 357 Siege Activations . | . . . . Martial Activations . | . . . . Shielding Activations . | . . . . Robots Disrupted . | . . . . Combat Hostiles . | . . . . Robots Corrupted . | . . . . Combat Hostiles . | . . . . Parts Fried . | . . . . Impact Corruptions . | . . . . Robots Melted . | . . . . Combat Hostiles . | . . . . Parts Melted . | . . . . Heat Transferred 296 | . 148 148 . Parts Sabotaged . | . . . . Parts Stolen . | . . . . Parts Stripped . | . . . . Power Chain Reactions . | . . . . Alert | -11 -10 -10 -8 ------- Run | Yrd Mat Sub Scr Maximum Alert Level . | . . . . Low Security (%) 100 | 100 100 . . Level 1 . | . . . . Level 2 . | . . . . Level 3 . | . . . . Level 4 . | . . . . Level 5 . | . . . . High Security . | . . . . Max Security . | . . . . Peak Influence 62 | . 62 . . Initial . | . . . . Average 9 | . 10 . . Influence Increases 162 | . 112 50 . Destroy 0b10 Robot/C 100 | . 80 20 . Destroy 0b10 Robot/NC 5 | . 5 . . Destroy Leader 12 | . 12 . . Lose Combat Pursuer 45 | . 15 30 . Influence Decreases 162 | . 82 68 12 Entered New Map 27 | . . 15 12 Time Decay 115 | . 82 33 . Lost Part 20 | . . 20 . Squads Dispatched . | . . . . Investigation . | . . . . Extermination . | . . . . Reinforcement . | . . . . Assault . | . . . . Garrison . | . . . . Intercept . | . . . . Searches Triggered . | . . . . Construction Impeded . | . . . . Haulers Reinforced . | . . . . Active Scanning Responses . | . . . . Cargo Convoy Interrupts . | . . . . Stealth | -11 -10 -10 -8 --------- Run | Yrd Mat Sub Scr Distress Signals 1 | . 1 . . Communications Jammed . | . . . . Distress Signals . | . . . . Times Spotted 43 | . 11 13 19 Peak Tracking Total 8 | . 3 8 8 Tactical Retreats 2 | . 1 1 . Traps | -11 -10 -10 -8 ------- Run | Yrd Mat Sub Scr Traps Triggered . | . . . . Indirectly . | . . . . Trap Hack Attempts . | . . . . Triggered . | . . . . Disarmed . | . . . . Reprogrammed . | . . . . Reused . | . . . . Traps Extracted . | . . . . Installed . | . . . . Triggered . | . . . . Machines | -11 -10 -10 -8 ---------- Run | Yrd Mat Sub Scr Machines Disabled . | . . . . Max in Single Turn . | . . . . Machines Repaired . | . . . . Machines Dismantled . | . . . . Machines Sabotaged . | . . . . Overloaded Fab Kills . | . . . . Hacking | -11 -10 -10 -8 --------- Run | Yrd Mat Sub Scr Machines Accessed 10 | . 4 . 6 Terminals 4 | . 4 . . Fabricators . | . . . . Repair Stations . | . . . . Recycling Units . | . . . . Scanalyzers . | . . . . Garrison Access . | . . . . Total Hacks 50 | . 7 . 43 Successful 47 | . 4 . 43 Failed 3 | . 3 . . Catastrophic . | . . . . Database Lockouts . | . . . . Manual 5 | . 5 . . Terminals 7 | . 7 . . Fabricators . | . . . . Repair Stations . | . . . . Recycling Units . | . . . . Scanalyzers . | . . . . Garrison Access . | . . . . Terminal Hacks 45 | . 2 . 43 Record 44 | . 1 . 43 Prototype ID Bank 1 | . 1 . . Fabricator Hacks . | . . . . Repair Station Hacks . | . . . . Recycling Unit Hacks . | . . . . Scanalyzer . | . . . . Garrison Access Hacks . | . . . . Unauthorized Hacks 2 | . 2 . . Terminals 2 | . 2 . . Botnet 2 | . 2 . . Fabricators . | . . . . Repair Stations . | . . . . Recycling Units . | . . . . Scanalyzers . | . . . . Garrison Access . | . . . . Data Cores Recovered . | . . . . Used . | . . . . Hacking Detections 3 | . 3 . . Full Trace Events . | . . . . Feedback Events . | . . . . Feedback Blocked . | . . . . Robot Schematics Acquired . | . . . . Robots Built . | . . . . Authchips . | . . . . Time . | . . . . Total Robot Build Rating . | . . . . Part Schematics Acquired . | . . . . Parts Built . | . . . . Authchips . | . . . . Time . | . . . . Total Part Build Rating . | . . . . Parts Repaired . | . . . . Time . | . . . . Parts Recycled . | . . . . Recycled Matter . | . . . . Retrieved Matter . | . . . . Retrieved Components . | . . . . Parts Scanalyzed . | . . . . Part Schematics Acquired . | . . . . Parts Damaged . | . . . . Bothacking | -11 -10 -10 -8 ------------ Run | Yrd Mat Sub Scr Used RIF Installer . | . . . . Robots Hacked . | . . . . Non-combat . | . . . . Combat . | . . . . Robot Hacks Applied . | . . . . Relay Couplers Released . | . . . . Fabnet Peak Effective % . | . . . . Robots Rewired . | . . . . Allies Hacked . | . . . . Hacks Repelled . | . . . . Allies | -11 -10 -10 -8 -------- Run | Yrd Mat Sub Scr Total Allies . | . . . . Largest Group . | . . . . Highest-Rated Group . | . . . . Highest-Rated Ally . | . . . . Total Orders . | . . . . Ally Attacks . | . . . . Total Damage . | . . . . Kills . | . . . . Allies Corrupted . | . . . . Allies Melted 3 | . . . 3 Intel | -11 -10 -10 -8 ------- Run | Yrd Mat Sub Scr Active Infowar (turns) . | . . . . Robot Analysis Total . | . . . . Derelict Logs Recovered 1 | . . 1 . Drone Launches . | . . . . Drone Recoveries . | . . . . Exploration | -11 -10 -10 -8 ------------- Run | Yrd Mat Sub Scr Turns Passed 4927 | 65 534 1872 2456 Spaces Moved 2891 | 48 322 1063 1458 Core 11 | 11 . . . Treads 2729 | . 210 1063 1456 Legs 149 | 37 112 . . Wheels 2 | . . . 2 Hover . | . . . . Flight . | . . . . Fastest Speed 50 | 50 120 160 100 Average Speed 159 | 103 146 160 164 Slowest Speed 240 | 120 160 160 240 Overloaded Moves . | . . . . Propulsion Burnouts . | . . . . Robots Hopped . | . . . . Potential Cave-ins . | . . . . Cave-ins Triggered . | . . . . Exploration Rate (%) 44 | 5 48 46 79 Regions Visited 3 Branch Regions 2 Pre-discovered Areas 3 | . . 1 2 Known Exits Taken . | . . . . Unknown Exits Taken 3 | 1 1 1 . Scrap Searched 11 | . . 5 6 Spaces Dug . | . . . . Terrain Destroyed 54 | . . 54 . Melee . | . . . . Projectile . | . . . . AOE 54 | . . 54 . Terrain Rammed . | . . . . Walls Destroyed . | . . . . Machines Disabled . | . . . . Actions | -11 -10 -10 -8 --------- Run | Yrd Mat Sub Scr Total 3114 | 60 359 1165 1530 Wait 62 | . 13 38 11 Move 2888 | 47 321 1062 1458 Hop . | . . . . Pick Up 39 | 7 3 10 19 Fast Attach 8 | 5 1 . 2 Attach 4 | 1 . 2 1 Detach 1 | . . 1 . Swap 28 | . 5 10 13 Drop 32 | . 2 4 26 Fire 50 | . 14 36 . Melee 2 | . . 2 . Ram . | . . . . Kick . | . . . . Crush . | . . . . Escape Stasis . | . . . . Rewire . | . . . . Trap . | . . . . Miscellaneous . | . . . . Route ------- -11/Scrapyard -10/Materials (discovered 2 exits: [*Mat] / [*Sub]) -10/Subcaves (discovered 3 exits: [*Mat] / [*Rec] / *Scr) -8/Scraptown History --------- Turn | Location | Event 16 | -11/Scrapyard | Discovered new exit (range 15) 66 | -11/Scrapyard | Entered Materials 315 | -10/Materials | Build established: Mutant 335 | -10/Materials | Discovered new exit (range 5) 587 | -10/Materials | Discovered new exit (range 10) 600 | -10/Materials | Entered Subcaves 601 | -10/Subcaves | Approached by a straggling Scientist 661 | -10/Subcaves | A swath of the cavern ceiling suddenly collapsed 1567 | -10/Subcaves | Disturbed a concealed Subdweller 1689 | -10/Subcaves | Scientist uncovered a shortcut to Scraptown 1719 | -10/Subcaves | Learned 2 Materials zone layouts 1810 | -10/Subcaves | Learned location of Zion (-6) 1810 | -10/Subcaves | Met a Zionite searching for "candidates" 1815 | -10/Subcaves | Discovered new exit (range 7) 2198 | -10/Subcaves | Shifting Twisted Machinery released Mak. Flight Unit 2222 | -10/Subcaves | Shifting Twisted Machinery released Mak. Kinetic Plating 2339 | -10/Subcaves | Discovered new exit (range 10) 2345 | -10/Subcaves | Core integrity fell below 50% 2472 | -10/Subcaves | Entered Scraptown 2600 | -8/Scraptown | Heard Great Nut preacher, LISTEN AND RECITE! 2933 | -8/Scraptown | Visited Comm Corps 2995 | -8/Scraptown | Visited Artisan Demo Area 3148 | -8/Scraptown | Visited UFD Registry 3148 | -8/Scraptown | Registered with UFD as "Phasemind" 3182 | -8/Scraptown | Visited TADAMA 3273 | -8/Scraptown | Visited Cyclists 3300 | -8/Scraptown | Entered Cyclist Reading Room 3880 | -8/Scraptown | Visited Junk Repository 3938 | -8/Scraptown | Visited DA-N13 Charitable Foundation 3959 | -8/Scraptown | Found DCF Scrap (26 items) 4130 | -8/Scraptown | Visited Chapter 10 4213 | -8/Scraptown | Visited A0-MCA Data Center 4223 | -8/Scraptown | Given an A- rating by A0-MCA 4230 | -8/Scraptown | Found A0-MCA's Component Scanner 4294 | -8/Scraptown | Met Optimus 4294 | -8/Scraptown | Accepted into 0bPrime 4358 | -8/Scraptown | Civil war broke out across Scraptown 4386 | -8/Scraptown | Visited Scrapoid Pod Storage 4415 | -8/Scraptown | Visited Junk Repository 4436 | -8/Scraptown | Lost 4 allies 4679 | -8/Scraptown | Optimus destroyed in the chaos of civil war 4744 | -8/Scraptown | Visited Observation Area 4788 | -8/Scraptown | Lost 3 allies 4916 | -8/Scraptown | Core integrity fell below 20% 4928 | -8/Scraptown | Destroyed by KF-FOL(j) with Overtuned Pulse Rifle Last Messages --------------- 04911_ P7-X9W(j) heat spikes uncontrollably. 04911_ G6-0TS(E) destroyed. 04911_ P7-X9W(j) overheating. 04912_ P7-X9W(j) heat spikes uncontrollably. 04912_ P7-X9W(j) overheating. 04915_ Critical hit (Burn: +50). 04915_ P7-X9W(j) critical meltdown. 04916_ KF-FOL(j) switches sides: "Sorry everyone but I think they're right!" 04917_ OC-UIZ(g) suffers critical hit (Burn). 04917_ Critical hit (Burn: +50). 04918_ OC-UIZ(g) suffers critical hit (Burn). 04919_ OC-UIZ(g) critical meltdown. 04920_ 2N-E73(j) cannibalizes Ovr. Pulse Rifle to repair Ovr. Pulse Rifle. 04921_ RZ-YME(j) heat spikes uncontrollably. 04923_ B0-O1L(g) destroyed. 04925_ XA-0ES(j) cannibalizes Ovr. Pulse Rifle to repair Ovr. Pulse Rifle. 04927_ RS-ZZ8(E) suffers critical hit (Burn). Map ----- +----------------------------------------------------+ | ??????? ????????????????????????# """"#?#""" | | ??????? ???????????????? ??????# " ""#?#""" | | ??????? "?????????????"" ??????# """"#?#"""/ | | ??????? "#??????????? "" ??????# ""#?#"""" | | ??????? ""#???????????? ?????### "#?#""" | | ???????"""#????????????? ?????# #?#" | | ??????? ""#?????????????# ?????###### #####?##### | | ######## ####???????##### ########### ########### | | #???????#"""" """"""""""" """"""""""" | | #???????#" | | #???????#" !=! | | #???????# | | #???????# [% | | ### #????#### != | | ## #????"""" %!""""""""""""""""""""""" | | ## #????"""" %[ """"""""""""""""""""" | | ## #????""" *![="###### ############# | | ## #????"""" !%!j""# ##?????? | | ## #????"""" %[!!""# X"#?????? | | ## ###??"""" =**!!"# "" "" ##?????? | | ## ""#"#"""" %j!% "# "" "" X"#?????? | | ## """"#"""" *%=""# " " ######## | | ## ""####### =%[ " !"" ! / | | ## ###?????#"j !!! " =%% =%[ % | | ## /%#########[[[ "# " ![= " ######## | | ## !%!!%[%[j!E%=%=@ # "" "" "#?????? | | ## !* !% ==j=%[!! # "" "" ##?????? | | ## %**!=gjj[% !! = "# =*= X"#?????? | | ### [=[%%!j=%=![%[!!%=[""# !% ##?????? | | ### !!=%[& [![*==[*=!%[###### [############# | | *=!! *= !=%!!*!!=!"!"""" """"""""""""""" | | [ !=!%![%==%=!!%!=*%""""!"""""" "" """"" | | ===%[ ! %!!%[[=%!*!%!=!!!= !% | | *%! [*!=[[**===%!=!![![!=* %![ | | !%=! !%===**!%%%[%!=%==%*!%= ! [ | | ==!!!#""""#!=!!%[!!/!!=%!! ! | | [!!% #????#%[[!!!=%**=[=!! =!= | | % #????#""""!"%""""""""" "%"""""""""" | | ##### ### ####????#######/###########=########## | | ## #??????????# ==[ #?# =%!*=]=## | | ## #??????????# ! #?# !!*=|[!##"" | | ## #??????????# # # #?#[ !!![!!##" | | ## #??????????#[!# #![#?# %=*[/%*##" "" | | """"" ## #??????????#* # #!!#?" *!##]*!##" "? | | """"" ## #??????????############# !##===##" "? | | """"" ## #??????????????????????###########" "? | | ## #????????????????????????????????#" "? | | ## #????????????????????????????????#" "" | | ######### #????????????????????????????????#" | | ????????# #????????????????????????????????#"""" | +----------------------------------------------------+ Best States ------------- Heat Dissipation 52 Energy Generation 15 Energy Capacity 275 Matter Stores 300 Matter Capacity 300 Sight Range 16 Terrain Scan Density 10 Evasion (%) 55 Recoil Reduction 2 Item Schematics ----------------- None Robot Schematics ------------------ None Fabricated ------------ Nothing Repaired ---------- Nothing Alien Tech Used ----------------- None Achievements -------------- None Challenges ------------ None Game ------ Seed RainbowEncryptedMace Manual? 0 Play Time 00:51:34 Cumulative 234.0 hours Start 2025.05.06 @ 13:26:30 End 2025.05.06 @ 14:32:54 Sessions 1 Manual Loads 0 Difficulty Rogue Special Mode None Game No. 347 Rogue 347 Adventurer 0 Explorer 0 Win Type - Total 1 Types 1/0/0/0/0/0/0/0/0/0 Lore% 42 Gallery% 59 Achievement% 43 Wizard Run 0 Options --------- Layout 1 ASCII 0 Keyboard 0 Movement Mouse Keybinds 0 Fullscreen 2 Font 24/Smallcaps Map View 50x35 Zoom Use 0% Tactical HUD 1 Map Filters NONE Filters NONE Steam 1 RUN: 68374d1d-ce49-4580-9e63-addb20f2e149